bitfinex-derivatives/quotes_SOLF0:USTF0_20240912
["timestamp","ask_amount","ask_price","bid_price","bid_amount"]
[1726145230133,3.3471,134.44,134.39,17.88]
[1726145230361,17.88,134.5,134.39,17.88]
[1726145230642,18.88,134.5,134.39,17.88]
[1726145231034,18.88,134.5,134.36,14.20503818]
[1726145231035,17.88,134.48,134.36,14.20503818]
[1726145231343,17.88,134.46,134.36,22.0813]
[1726145231642,3.3478,134.41,134.36,22.0813]
[1726145232442,3.3478,134.41,134.36,25.4302]
[1726145232630,3.348,134.4,134.36,25.4302]
[1726145233036,3.3483,134.39,134.36,22.0813]
[1726145233233,17.88,134.44,134.36,1.3565]
[1726145233535,3.3487,134.37,134.36,1.3565]
[1726145233737,17.88,134.44,134.36,1.3565]
[1726145233940,17.88,134.44,134.33,19.272]
[1726145234143,17.88,134.42,134.33,19.272]
[1726145234338,17.88,134.42,134.33,1.392]
[1726145234641,3.3492,134.36,134.33,1.392]
[1726145234829,17.88,134.4,134.33,1.392]
[1726145235033,2.7191,134.39,134.3,15.02983227]
[1726145235234,17.88,134.38,134.3,10.00797929]
[1726145235738,17.88,134.38,134.3,5.0224619]
[1726145236044,17.88,134.38,134.29,19.272]
[1726145236346,17.88,134.36,134.29,1.392]
[1726145236740,3.3497,134.34,134.29,1.392]
[1726145236945,1.0,134.37,134.29,1.392]
[1726145236946,1.0,134.37,134.29,19.272]
[1726145237843,1.0,134.37,134.29,22.6227]
[1726145237844,3.3496,134.34,134.29,22.6227]
[1726145238244,1.0,134.37,134.29,19.272]
[1726145238443,1.0,134.37,134.28,1.3963]
[1726145238650,17.88,134.36,134.28,1.3963]
[1726145238847,17.88,134.36,134.27,1.4151]
[1726145239344,1.0,134.35,134.27,1.4151]
[1726145239542,3.3502,134.32,134.27,1.4151]
[1726145239936,3.3502,134.32,134.27,4.7663]
[1726145240354,3.3498,134.33,134.28,3.3509]
[1726145240650,1.0,134.35,134.27,1.4151]
[1726145241149,3.3504,134.31,134.27,1.4151]
[1726145241546,1.0,134.35,134.27,1.4151]
[1726145242445,3.3504,134.31,134.27,1.4151]
[1726145243145,3.3504,134.31,134.26,39.15854352]
[1726145243146,17.88,134.32,134.26,17.92724352]
[1726145243651,19.1837,134.34,134.26,17.92724352]
[1726145244450,2.7665,134.33,134.26,17.92724352]
[1726145244746,3.3509,134.29,134.26,17.92724352]
[1726145245746,3.3506,134.3,134.26,35.80724352]
[1726145248044,3.3504,134.31,134.26,35.80724352]
[1726145248255,2.71,134.34,134.26,35.80724352]
[1726145249235,3.3504,134.31,134.26,35.80724352]
[1726145249744,3.3503,134.31,134.26,39.15854352]
[1726145250142,2.71,134.34,134.26,39.15854352]
[1726145251239,20.59,134.34,134.26,39.15854352]
[1726145252453,3.3506,134.3,134.26,17.92724352]
[1726145252840,20.59,134.34,134.26,17.92724352]
[1726145253544,3.3501,134.32,134.26,17.92724352]
[1726145253750,20.59,134.34,134.26,17.92724352]
[1726145253751,20.59,134.34,134.27,3.3511]
[1726145254055,3.3502,134.32,134.27,3.3511]
[1726145254256,1.0,134.35,134.28,3.3509]
[1726145254552,1.0,134.35,134.29,1.3333]
[1726145254755,3.3499,134.33,134.29,1.3333]
[1726145255548,3.3496,134.34,134.29,1.3333]
[1726145255753,1.0,134.35,134.29,1.3333]
[1726145255945,17.88,134.32,134.26,17.92724352]
[1726145256753,3.3506,134.3,134.26,17.92724352]
[1726145258549,3.3503,134.31,134.26,17.92724352]
[1726145258749,17.88,134.34,134.26,17.92724352]
[1726145258957,1.0,134.35,134.26,35.80724352]
[1726145259355,1.0,134.35,134.28,3.3509]
[1726145259673,1.0,134.35,134.29,1.3177]
[1726145259851,1.0,134.35,134.3,3.3503]
[1726145260563,3.3492,134.36,134.31,3.3501]
[1726145260751,17.88,134.4,134.31,3.3501]
[1726145261056,17.88,134.38,134.3,1.3232]
[1726145261655,3.3497,134.34,134.3,1.3232]
[1726145261955,17.88,134.38,134.3,1.3232]
[1726145262257,3.3496,134.34,134.3,1.3232]
[1726145264060,3.3497,134.33,134.3,1.3232]
[1726145264460,3.3497,134.33,134.29,1.3177]
[1726145265968,3.35,134.32,134.29,1.3177]
[1726145267566,3.35,134.32,134.29,4.6684]
[1726145268658,3.3503,134.31,134.29,1.3177]
[1726145268858,19.2773,134.38,134.29,1.3177]
[1726145269163,3.3503,134.31,134.29,1.3177]
[1726145269471,19.2773,134.38,134.29,1.3177]
[1726145269669,3.3501,134.32,134.29,4.6684]
[1726145270464,3.3501,134.32,134.29,1.3177]
[1726145270667,19.2773,134.38,134.29,1.3177]
[1726145271265,3.3499,134.33,134.29,4.6683]
[1726145271566,3.3499,134.33,134.29,1.3177]
[1726145271768,1.0,134.39,134.31,17.88]
[1726145272166,3.3494,134.35,134.32,3.3498]
[1726145272363,17.88,134.37,134.29,1.3177]
[1726145272760,3.3501,134.32,134.29,1.3177]
[1726145273161,3.3497,134.34,134.3,3.3504]
[1726145273371,1.2974,134.38,134.3,3.3504]
[1726145273964,3.3496,134.34,134.3,3.3504]
[1726145274362,1.2974,134.38,134.3,3.3504]
[1726145274562,3.3496,134.34,134.3,3.3504]
[1726145274763,3.3496,134.34,134.31,3.3502]
[1726145274965,3.349,134.36,134.31,17.88]
[1726145275769,3.349,134.36,134.32,3.3499]
[1726145277371,3.349,134.36,134.31,17.88]
[1726145277769,1.0,134.39,134.31,17.88]
[1726145277977,1.341,134.41,134.33,17.88]
[1726145278174,19.221,134.41,134.34,1.3746]
[1726145278471,3.3492,134.35,134.34,1.3746]
[1726145279266,3.3489,134.37,134.34,4.7241]
[1726145279468,3.3489,134.37,134.34,1.3746]
[1726145281178,103.67439396,134.42,134.35,3.3492]
[1726145281476,103.67439396,134.42,134.35,17.88]
[1726145281672,3.3482,134.4,134.36,3.3489]
[1726145281873,1.3815,134.43,134.35,21.5710909]
[1726145282071,3.3479,134.41,134.37,3.3485]
[1726145282584,17.88,134.44,134.35,3.3492]
[1726145283168,3.3482,134.4,134.36,3.349]
[1726145283678,17.88,134.44,134.34,1.3746]
[1726145284172,3.3484,134.39,134.35,3.3492]
[1726145284372,17.88,134.44,134.34,1.3746]
[1726145284571,3.3487,134.38,134.34,4.724]
[1726145285382,3.3483,134.39,134.34,5.15455544]
[1726145285872,3.3483,134.39,134.35,3.3491]
[1726145286068,3.3486,134.38,134.35,3.3491]
[1726145286269,19.2444,134.44,134.34,5.15455544]
[1726145286480,17.88,134.42,134.34,5.01276525]
[1726145286877,3.3487,134.38,134.34,5.01276525]
[1726145287083,3.3487,134.38,134.34,8.36206525]
[1726145287284,17.88,134.42,134.34,4.7239]
[1726145287581,17.88,134.42,134.34,1.3746]
[1726145287781,1.2976,134.41,134.34,1.3746]
[1726145287979,1.2976,134.41,134.28,1.359]
[1726145287980,17.88,134.4,134.31,17.88]
[1726145288187,19.237,134.4,134.31,21.2301]
[1726145288377,3.3491,134.36,134.31,17.88]
[1726145289085,3.3491,134.36,134.32,3.3498]
[1726145289276,3.349,134.37,134.31,17.88]
[1726145289686,3.349,134.37,134.33,17.88]
[1726145289884,3.349,134.36,134.33,17.88]
[1726145290088,3.349,134.36,134.34,11.44]
[1726145290391,3.3494,134.35,134.32,11.44]
[1726145290890,3.3494,134.35,134.32,14.79]
[1726145291084,3.3495,134.34,134.29,1.3763]
[1726145291389,11.44,134.37,134.3,3.3504]
[1726145291593,11.44,134.37,134.3,14.7904]
[1726145292195,19.2988,134.39,134.3,3.3504]
[1726145292379,3.3499,134.33,134.3,3.3504]
[1726145293986,1.4188,134.39,134.29,1.3763]
[1726145294584,3.3499,134.33,134.3,3.3503]
[1726145295084,1.4188,134.39,134.26,19.29274352]
[1726145295085,17.88,134.37,134.26,19.29274352]
[1726145295293,17.88,134.35,134.26,19.29274352]
[1726145295797,17.88,134.35,134.28,3.351]
[1726145295798,3.3504,134.31,134.28,3.351]
[1726145295986,3.3504,134.31,134.26,19.29274352]
[1726145296187,19.2862,134.35,134.26,19.29274352]
[1726145296397,19.2862,134.35,134.27,3.3511]
[1726145296597,19.2862,134.35,134.26,19.29274352]
[1726145296803,3.3509,134.29,134.26,22.64424352]
[1726145297190,19.2862,134.35,134.26,19.29274352]
[1726145297502,17.88,134.33,134.26,17.92724352]
[1726145297691,1.4062,134.35,134.26,17.92724352]
[1726145297883,17.88,134.34,134.26,17.92724352]
[1726145298088,19.1723,134.34,134.26,17.92724352]
[1726145298399,3.3511,134.28,134.26,17.92724352]
[1726145298897,1.0,134.33,134.26,17.92724352]
[1726145299493,3.3511,134.28,134.26,17.92724352]
[1726145300109,1.0,134.33,134.26,17.92724352]
[1726145300496,3.3511,134.28,134.26,17.92724352]
[1726145300704,17.88,134.3,134.26,17.92724352]
[1726145300898,2.72,134.29,134.26,17.92724352]
[1726145301289,3.351,134.28,134.26,17.92724352]
[1726145302207,2.72,134.29,134.26,17.92724352]
[1726145302401,17.88,134.32,134.26,17.92724352]
[1726145303006,3.6861,134.33,134.26,17.92724352]
[1726145303898,3.3508,134.29,134.26,17.92724352]
[1726145304106,3.6861,134.33,134.26,17.92724352]
[1726145305097,3.3505,134.3,134.26,17.92724352]
[1726145306695,3.3505,134.3,134.26,21.27874352]
[1726145308500,3.3501,134.32,134.28,3.3508]
[1726145309109,3.6861,134.33,134.28,3.3508]
[1726145309312,3.6861,134.33,134.29,3.3506]
[1726145309613,2.6861,134.33,134.27,3.77188407]
[1726145309816,3.3501,134.32,134.28,3.3509]
[1726145310306,3.3503,134.31,134.27,7.12298407]
[1726145311115,2.6861,134.33,134.26,39.15864352]
[1726145311502,3.3508,134.29,134.26,39.15864352]
[1726145312096,2.6861,134.33,134.26,35.80724352]
[1726145312612,2.6861,134.33,134.26,39.15854352]
[1726145313208,2.6861,134.33,134.27,3.3512]
[1726145313419,17.88,134.37,134.27,3.3512]
[1726145313420,1.3799,134.38,134.28,17.88]
[1726145313611,4.2119,134.38,134.28,19.1909]
[1726145313914,2.832,134.38,134.3,17.88]
[1726145314111,2.832,134.38,134.32,11.44]
[1726145314112,14.272,134.38,134.32,11.44]
[1726145314913,6.45642576,134.37,134.32,11.44]
[1726145315120,3.3494,134.35,134.32,11.44]
[1726145315311,6.45642576,134.34,134.32,11.44]
[1726145315507,6.45642576,134.33,134.32,11.44]
[1726145316105,6.41538709,134.33,134.32,11.44]
[1726145316617,12.83077475,134.33,134.32,11.44]
[1726145317005,6.41538766,134.33,134.32,11.44]
[1726145319217,6.41538766,134.33,134.32,14.79]
[1726145319409,3.3491,134.36,134.32,11.44]
[1726145319717,6.4154585,134.33,134.29,2.7363]
[1726145319926,3.3497,134.34,134.31,11.44]
[1726145320105,6.4154585,134.33,134.31,11.44]
[1726145320305,6.4154585,134.32,134.31,11.44]
[1726145322003,9.7654585,134.32,134.31,11.44]
[1726145322224,6.4154585,134.32,134.29,11.44]
[1726145322408,6.4154585,134.31,134.29,11.44]
[1726145322719,3.3502,134.31,134.29,11.44]
[1726145322913,18.06824315,134.3,134.29,11.44]
[1726145323722,18.06824315,134.3,134.29,14.7907]
[1726145323910,18.06824315,134.3,134.29,11.44]
[1726145324717,18.06824315,134.3,134.29,14.7907]
[1726145325027,6.41386941,134.3,134.29,14.7907]
[1726145326523,3.3499,134.33,134.29,14.7907]
[1726145326717,3.35,134.32,134.3,11.44]
[1726145327025,9.70439597,134.32,134.3,11.44]
[1726145327212,6.35439597,134.31,134.3,11.44]
[1726145327609,6.35439597,134.31,134.3,14.7905]
[1726145329013,3.3496,134.34,134.31,3.3502]
[1726145329212,3.3497,134.33,134.32,11.44]
[1726145330027,3.35,134.32,134.3,11.44]
[1726145330225,11.44,134.36,134.3,11.44]
[1726145330421,11.44,134.33,134.28,5.12281806]
[1726145330611,11.44,134.35,134.28,16.56281806]
[1726145331524,3.3503,134.31,134.28,16.56281806]
[1726145332221,3.3505,134.3,134.28,16.56281806]
[1726145332524,11.44,134.35,134.28,16.56281806]
[1726145333329,3.3504,134.31,134.28,16.56281806]
[1726145333532,11.44,134.35,134.28,1.3109]
[1726145333723,11.44,134.33,134.28,12.7509]
[1726145334324,3.3507,134.3,134.28,12.7509]
[1726145335922,3.3502,134.31,134.28,12.7509]
[1726145336322,11.44,134.35,134.28,12.7509]
[1726145336527,3.3506,134.3,134.28,12.7509]
[1726145336729,11.44,134.36,134.29,11.44]
[1726145336930,3.3498,134.33,134.31,11.44]
[1726145337317,1.3274,134.37,134.31,11.44]
[1726145337521,1.3274,134.37,134.32,11.44]
[1726145338124,3.3493,134.35,134.32,11.44]
[1726145339231,3.3491,134.36,134.32,11.44]
[1726145339724,1.3274,134.37,134.32,11.44]
[1726145340428,1.3274,134.37,134.31,11.44]
[1726145340625,12.7674,134.37,134.31,11.44]
[1726145341636,3.3492,134.36,134.31,11.44]
[1726145341827,12.7674,134.37,134.31,11.44]
[1726145342233,3.3495,134.34,134.31,11.44]
[1726145342730,3.3495,134.34,134.3,14.7902]
[1726145343231,3.3492,134.35,134.32,11.44]
[1726145344226,12.7674,134.37,134.32,11.44]
[1726145344422,1.4017,134.38,134.33,11.44]
[1726145345423,3.3491,134.36,134.33,11.44]
[1726145345834,1.4017,134.38,134.32,11.44]
[1726145347034,3.3493,134.35,134.31,3.3501]
[1726145347236,11.44,134.37,134.3,3.3504]
[1726145347439,11.44,134.37,134.31,11.44]
[1726145347632,3.3494,134.35,134.31,11.44]
[1726145347937,3.3494,134.35,134.31,14.7902]
[1726145348137,3.3494,134.35,134.32,11.44]
[1726145348335,3.3491,134.36,134.32,14.79]
[1726145348726,3.3491,134.36,134.33,11.44]
[1726145349121,3.3488,134.37,134.34,3.66530156]
[1726145349321,11.44,134.42,134.36,11.44]
[1726145349633,3.3483,134.39,134.36,11.44]
[1726145349839,11.44,134.42,134.36,11.44]
[1726145350835,3.348,134.4,134.36,14.7889]
[1726145351034,3.348,134.4,134.36,11.44]
[1726145352435,2.7888,134.44,134.39,11.44]
[1726145352738,14.2288,134.44,134.38,11.44]
[1726145353041,14.2288,134.44,134.36,12.8616]
[1726145353042,11.44,134.42,134.36,12.8616]
[1726145353733,3.3482,134.4,134.36,12.8616]
[1726145354127,3.3482,134.4,134.38,11.44]
[1726145354837,11.44,134.42,134.36,1.4216]
[1726145355043,2.7673,134.44,134.27,3.75996127]
[1726145355044,11.44,134.4,134.34,11.44]
[1726145355243,3.3489,134.37,134.34,11.44]
[1726145355735,3.3486,134.38,134.34,15.17706543]
[1726145355939,3.3486,134.38,134.35,11.44]
[1726145357139,11.44,134.4,134.35,11.44]
[1726145357442,11.44,134.4,134.34,11.44]
[1726145359142,11.44,134.39,134.34,11.44]
[1726145359844,11.44,134.39,134.28,5.20891482]
[1726145360048,2.7267,134.38,134.32,11.44]
[1726145360960,3.3494,134.35,134.32,11.44]
[1726145361262,3.3494,134.35,134.33,11.44]
[1726145361452,11.44,134.4,134.34,11.44]
[1726145362652,3.3489,134.37,134.34,11.44]
[1726145363658,3.349,134.36,134.34,11.44]
[1726145363858,3.349,134.36,134.33,11.44]
[1726145364055,11.44,134.4,134.33,11.44]
[1726145364949,3.3491,134.36,134.33,11.44]
[1726145365162,11.44,134.4,134.34,11.44]
[1726145366560,3.3487,134.38,134.34,14.7895]
[1726145366764,11.44,134.4,134.34,14.7895]
[1726145367154,3.3486,134.38,134.34,14.7895]
[1726145367564,11.44,134.4,134.34,14.7895]
[1726145368054,2.7267,134.44,134.36,11.44]
[1726145368253,11.44,134.43,134.36,11.44]
[1726145368866,3.3485,134.38,134.36,11.44]
[1726145370063,2.7267,134.44,134.36,11.44]
[1726145370261,14.1667,134.44,134.37,11.44]
[1726145370956,2.7267,134.44,134.39,11.44]
[1726145371755,2.7267,134.44,134.41,11.44]
[1726145371955,3.3475,134.42,134.41,11.44]
[1726145374263,3.3474,134.43,134.41,11.44]
[1726145374967,1.3867,134.48,134.42,11.44]
[1726145375265,12.8267,134.48,134.42,11.44]
[1726145375463,3.3471,134.44,134.42,11.44]
[1726145377261,3.3468,134.45,134.43,11.44]
[1726145378075,3.3466,134.46,134.43,11.44]
[1726145379167,1.31,134.49,134.45,11.44]
[1726145380265,3.3462,134.48,134.46,11.44]
[1726145380471,1.31,134.49,134.46,11.44]
[1726145381262,3.3462,134.48,134.46,11.44]
[1726145381579,1.31,134.49,134.46,11.44]
[1726145381765,3.3462,134.48,134.46,11.44]
[1726145382474,1.31,134.49,134.46,11.44]
[1726145383372,3.3462,134.48,134.46,11.44]
[1726145388377,3.346,134.49,134.47,11.44]
[1726145389374,12.7723,134.52,134.46,11.44]
[1726145389578,11.44,134.52,134.46,11.44]
[1726145389784,3.3461,134.48,134.46,11.44]
[1726145389985,1.3774,134.53,134.47,11.44]
[1726145390188,11.44,134.54,134.49,11.44]
[1726145390480,3.3455,134.5,134.49,11.44]
[1726145390975,11.44,134.54,134.49,11.44]
[1726145390976,1.3588,134.55,134.49,11.44]
[1726145391180,1.3588,134.55,134.5,11.44]
[1726145392378,3.3449,134.53,134.5,11.44]
[1726145392883,3.3444,134.55,134.52,11.44]
[1726145393070,3.3444,134.55,134.53,11.44]
[1726145393266,12.7988,134.59,134.53,11.44]
[1726145393680,3.3446,134.54,134.52,11.44]
[1726145393879,11.44,134.58,134.52,11.44]
[1726145394679,1.3588,134.59,134.52,11.44]
[1726145394982,11.44,134.59,134.52,11.44]
[1726145395678,3.3447,134.54,134.52,11.44]
[1726145397379,11.44,134.59,134.53,11.44]
[1726145397579,5.04716432,134.6,134.55,11.44]
[1726145397580,1.3084,134.58,134.55,11.44]
[1726145397882,11.44,134.61,134.55,11.44]
[1726145398080,3.3439,134.57,134.55,11.44]
[1726145398777,660.89160993,134.63,134.56,11.44]
[1726145399171,649.45160993,134.63,134.58,11.44]
[1726145399893,649.45160993,134.63,134.59,11.44]
[1726145400486,3.343,134.6,134.59,11.44]
[1726145400978,3.3429,134.61,134.59,11.44]
[1726145401183,1.3946,134.65,134.59,11.44]
[1726145401478,3.3428,134.61,134.56,3.69264519]
[1726145401682,1.2981,134.67,134.45,227.0]
[1726145401683,11.44,134.64,134.45,227.0]
[1726145401878,11.44,134.64,134.44,14.1447]
[1726145401879,11.44,134.64,134.58,11.44]
[1726145402075,1.2981,134.67,134.53,3.74005797]
[1726145402076,11.44,134.61,134.53,3.74005797]
[1726145402285,1.2992,134.6,134.56,11.44]
[1726145402582,11.44,134.62,134.56,11.44]
[1726145402583,3.3433,134.59,134.56,11.44]
[1726145403173,11.44,134.61,134.43,2.6887]
[1726145403380,11.44,134.61,134.38,10.43245921]
[1726145403381,2.5892,134.6,134.55,11.44]
[1726145403674,1.2992,134.6,134.55,11.44]
[1726145403870,11.44,134.61,134.55,11.44]
[1726145404686,11.44,134.61,134.53,3.69146722]
[1726145404991,1.2918,134.6,134.56,11.44]
[1726145405279,3.3435,134.59,134.56,11.44]
[1726145406075,11.44,134.62,134.56,11.44]
[1726145406287,4.0817,134.65,134.43,2.6376]
[1726145406581,11.44,134.61,134.55,11.44]
[1726145406981,11.44,134.61,134.55,15.21758994]
[1726145407375,3.3434,134.59,134.56,11.44]
[1726145408484,107.58508843,134.65,134.58,11.44]
[1726145408670,107.58508843,134.65,134.59,11.44]
[1726145408986,11.44,134.64,134.57,11.44]
[1726145409184,11.44,134.62,134.57,11.44]
[1726145409890,11.44,134.62,134.55,11.44]
[1726145410092,11.44,134.61,134.55,11.44]
[1726145410280,11.44,134.63,134.58,11.44]
[1726145410588,11.44,134.63,134.57,11.44]
[1726145410589,3.3434,134.59,134.57,11.44]
[1726145410784,11.44,134.62,134.55,11.44]
[1726145411188,3.3437,134.58,134.55,11.44]
[1726145412592,3.3438,134.57,134.55,11.44]
[1726145413193,11.44,134.6,134.45,2.7283]
[1726145413381,14.1918,134.59,134.51,11.44]
[1726145413581,11.44,134.57,134.51,11.44]
[1726145413781,3.3446,134.54,134.51,11.44]
[1726145414092,2.7518,134.59,134.53,11.44]
[1726145414275,3.3436,134.58,134.55,11.44]
[1726145414480,11.44,134.61,134.55,11.44]
[1726145414681,11.44,134.61,134.43,9.4718]
[1726145414902,2.7497,134.6,134.55,11.44]
[1726145415195,1.3199,134.6,134.55,11.44]
[1726145415391,1.3302,134.64,134.55,11.44]
[1726145415392,11.44,134.62,134.55,11.44]
[1726145416089,11.44,134.62,134.57,11.44]
[1726145416400,3.3434,134.59,134.57,11.44]
[1726145417289,3.3434,134.59,134.58,11.44]
[1726145417491,3.3431,134.6,134.58,11.44]
[1726145417806,103.49831965,134.65,134.59,11.44]
[1726145418092,103.49831965,134.65,134.61,11.44]
[1726145418984,103.49831965,134.65,134.63,11.44]
[1726145419181,103.49831965,134.65,134.48,14.1428]
[1726145419384,103.49831965,134.65,134.6,11.44]
[1726145419901,3.3425,134.63,134.6,11.44]
[1726145420191,103.49831965,134.65,134.61,11.44]
[1726145420393,11.44,134.68,134.63,11.44]
[1726145420590,11.44,134.69,134.63,11.44]
[1726145420986,3.3419,134.65,134.63,11.44]
[1726145421192,11.44,134.69,134.63,11.44]
[1726145421383,3.3417,134.66,134.63,11.44]
[1726145421584,3.3417,134.66,134.64,11.44]
[1726145421990,397.0,134.76,134.65,11.44]
[1726145422292,11.44,134.72,134.51,111.97795509]
[1726145422489,11.44,134.71,134.51,104.52695509]
[1726145422793,11.44,134.71,134.64,11.44]
[1726145423781,4.68219973,134.75,134.64,11.44]
[1726145423782,11.44,134.69,134.64,11.44]
[1726145424792,3.3415,134.67,134.64,11.44]
[1726145424992,4.68219973,134.75,134.65,11.44]
[1726145425296,11.44,134.72,134.65,11.44]
[1726145425897,11.44,134.72,134.67,11.44]
[1726145426099,11.44,134.72,134.65,11.44]
[1726145427198,3.3406,134.7,134.65,11.44]
[1726145427595,3.3409,134.69,134.66,11.44]
[1726145428491,3.3409,134.69,134.65,11.44]
[1726145429103,3.3409,134.69,134.66,11.44]
[1726145429802,3.3409,134.69,134.65,11.44]
[1726145430195,3.3409,134.69,134.66,11.44]
[1726145430401,3.3406,134.7,134.66,11.44]
[1726145431112,11.44,134.7,134.64,11.44]
[1726145431600,3.3413,134.67,134.64,11.44]
[1726145431897,1.0,134.75,134.52,6.69]
[1726145431898,11.44,134.69,134.52,6.69]
[1726145432106,11.44,134.67,134.61,11.44]
[1726145432292,11.44,134.66,134.49,108.25347508]
[1726145432493,11.44,134.65,134.59,11.44]
[1726145432693,11.44,134.63,134.49,104.5367168]
[1726145432913,11.44,134.63,134.57,11.44]
[1726145433499,11.44,134.64,134.57,11.44]
[1726145433809,11.44,134.64,134.55,3.67754161]
[1726145433810,3.3424,134.63,134.58,14.7834]
[1726145433999,11.44,134.65,134.58,11.44]
[1726145434203,1.0,134.66,134.56,17.84]
[1726145434404,17.84,134.64,134.54,21.1843]
[1726145434609,17.84,134.62,134.42,227.0]
[1726145434810,17.84,134.62,134.51,17.84]
[1726145434998,3.3437,134.58,134.52,3.3448]
[1726145435205,17.84,134.62,134.51,21.5338912]
[1726145435206,17.84,134.62,134.53,17.84]
[1726145435403,3.74062244,134.69,134.53,17.84]
[1726145435404,17.84,134.64,134.53,17.84]
[1726145436504,17.84,134.64,134.55,17.84]
[1726145436904,3.3428,134.61,134.56,3.3438]
[1726145437099,17.84,134.66,134.57,17.84]
[1726145437402,3.3425,134.63,134.58,3.3435]
[1726145437607,17.84,134.68,134.57,17.84]
[1726145437998,17.84,134.66,134.51,3.6938912]
[1726145438305,17.84,134.66,134.56,17.84]
[1726145438509,3.3433,134.59,134.56,17.84]
[1726145438706,17.84,134.64,134.54,17.84]
[1726145439312,1.0,134.63,134.54,17.84]
[1726145439505,1.0,134.63,134.56,17.84]
[1726145439709,3.343,134.61,134.56,21.1838]
[1726145439912,1.0,134.63,134.56,17.84]
[1726145440509,1.0,134.63,134.58,17.84]
[1726145440912,1.0,134.63,134.58,21.1835]
[1726145441413,17.84,134.68,134.58,17.84]
[1726145441798,17.84,134.7,134.6,17.84]
[1726145442303,3.3423,134.64,134.6,17.84]
[1726145442614,17.84,134.7,134.6,17.84]
[1726145442816,17.84,134.7,134.6,21.1828]
[1726145443007,17.84,134.7,134.6,17.84]
[1726145443207,1.0,134.69,134.61,17.84]
[1726145443513,1.0,134.69,134.6,17.84]
[1726145443705,17.84,134.68,134.57,17.84]
[1726145443906,3.3428,134.61,134.57,17.84]
[1726145444109,17.84,134.66,134.57,17.84]
[1726145444512,3.3431,134.6,134.57,17.84]
[1726145444820,3.3431,134.6,134.56,17.84]
[1726145445805,3.3428,134.61,134.56,21.1839]
[1726145446204,1.0,134.65,134.56,17.84]
[1726145446419,3.3429,134.61,134.56,21.184]
[1726145446607,1.0,134.65,134.56,21.184]
[1726145447016,1.0,134.65,134.56,17.84]
[1726145447607,1.0,134.65,134.56,21.184]
[1726145448121,3.3429,134.61,134.56,21.184]
[1726145448825,3.343,134.6,134.56,21.184]
[1726145449936,1.0,134.65,134.56,17.84]
[1726145450124,1.0,134.65,134.57,4.2361]
[1726145450310,17.84,134.63,134.57,4.2361]
[1726145450508,3.3435,134.58,134.57,4.2361]
[1726145452109,3.3435,134.58,134.57,1.4149]
[1726145454531,3.3444,134.55,134.49,6.1669]
[1726145454721,3.3444,134.55,134.51,1.3671]
[1726145455026,3.3445,134.54,134.51,1.3671]